[Event "WJCC U20 Girls 2019"]
[Site "New Delhi"]
[Date "2019.10.23"]
[Round "9.37"]
[White "Aouachria, Marwa"]
[Black "Punsalan, Vyanla M"]
[Result "0-1"]
[ECO "B27"]
[WhiteElo "1839"]
[BlackElo "1964"]
[Annotator "NA"]
[PlyCount "158"]
[EventDate "2019.10.15"]
[EventType "swiss"]
[EventCountry "IND"]
[SourceTitle "playchess.com"]
[Source "ChessBase"]
[SourceQuality "1"]
[TimeControl "40/5400+30:1800+30"]

1. e4 {[%emt 0:04:15]} c5 {[%emt 0:00:00]} 2. Nf3 {[%emt 0:00:18]} g6 {[%emt 0:01:05]} 3. d4 {[%emt 0:00:05]} cxd4 {[%emt 0:00:19]} 4. Qxd4 {[%emt 0:00:49]} Nf6 {[%emt 0:00:24]} 5. e5 {[%emt 0:00:31]} Nc6 {[%emt 0:00:32]} 6. Qc3 {[%emt 0:04:17]} Nd5 {[%emt 0:01:53]} 7. Qb3 {[%emt 0:00:22]} Qc7 {[%emt 0:04:47]} 8. Bc4 {[%emt 0:02:13]} Na5 {[%emt 0:04:57]} 9. Qb5 {[%emt 0:00:03]} Qxc4 {[%emt 0:02:47]} 10. Qxa5 {[%emt 0:00:03]} b6 {[%emt 0:02:19]} 11. Qd2 {[%emt 0:00:54]} Bb7 {[%emt 0:04:53]} 12. Na3 {[%emt 0:00:28]} Qe4+ {[%emt 0:11:25]} 13. Qe2 {[%emt 0:00:13]} Qg4 {[%emt 0:00:45]} 14. O-O {[%emt 0:02:48]} g5 {[%emt 0:12:49]} 15. h3 {[%emt 0:01:25]} Nf4 {[%emt 0:01:22]} 16. hxg4 {[%emt 0:03:35]} Nxe2+ {[%emt 0:00:24]} 17. Kh2 {[%emt 0:00:03]} h5 {[%emt 0:01:49]} 18. Kh3 {[%emt 0:01:38]} Bxf3 {[%emt 0:09:41]} 19. gxf3 {[%emt 0:00:07]} hxg4+ {[%emt 0:03:04]} 20. Kxg4 {[%emt 0:02:42]} Nxc1 {[%emt 0:01:18]} 21. Raxc1 {[%emt 0:00:18]} Rh4+ {[%emt 0:04:23]} 22. Kg3 {[%emt 0:00:39]} Bg7 {[%emt 0:00:48]} 23. Rfe1 {[%emt 0:00:19]} Rc8 {[%emt 0:00:53]} 24. c3 {[%emt 0:00:25]} Rc5 {[%emt 0:00:53]} 25. Rh1 {[%emt 0:01:29]} Bxe5+ {[%emt 0:01:44]} 26. Kg2 {[%emt 0:00:05]} Rxh1 {[%emt 0:02:59]} 27. Rxh1 {[%emt 0:00:03]} d6 {[%emt 0:00:30]} 28. Nb1 {[%emt 0:00:26]} Bf4 {[%emt 0:02:04]} 29. Rh8+ {[%emt 0:00:23]} Kd7 {[%emt 0:00:18]} 30. Ra8 {[%emt 0:00:13]} Rc7 {[%emt 0:00:57]} 31. Na3 {[%emt 0:02:16]} Kc6 {[%emt 0:03:17]} 32. b3 {[%emt 0:02:30]} Bc1 {[%emt 0:02:46]} 33. Nc4 {[%emt 0:00:51]} b5 {[%emt 0:01:29]} 34. Ne3 {[%emt 0:01:45]} Bxe3 {[%emt 0:02:16]} 35. fxe3 {[%emt 0:00:01]} Kd5 {[%emt 0:01:38]} 36. e4+ {[%emt 0:01:15]} Ke5 {[%emt 0:00:55]} 37. Kg3 {[%emt 0:00:58]} f6 {[%emt 0:02:03]} 38. Rb8 {[%emt 0:01:58]} a6 {[%emt 0:02:08]} 39. Rb6 {[%emt 0:04:11]} Ra7 {[%emt 0:01:24]} 40. Kg4 {[%emt 0:02:23]} e6 {[%emt 0:02:04]} 41. a4 {[%emt 0:31:34]} bxa4 {[%emt 0:30:42]} 42. bxa4 {[%emt 0:00:02]} d5 {[%emt 0:01:45]} 43. exd5 {[%emt 0:00:32]} exd5 {[%emt 0:00:30]} 44. Rc6 {[%emt 0:01:06]} a5 {[%emt 0:00:42]} 45. Rc5 {[%emt 0:01:31]} Kd6 {[%emt 0:01:24]} 46. Rb5 {[%emt 0:00:09]} Ke6 {[%emt 0:00:18]} 47. Rb6+ {[%emt 0:00:55]} Ke5 {[%emt 0:00:31]} 48. Rb8 {[%emt 0:06:52]} Rc7 {[%emt 0:00:48]} 49. Re8+ {[%emt 0:00:17]} Kd6 {[%emt 0:00:07]} 50. Rd8+ {[%emt 0:00:11]} Ke6 {[%emt 0:00:44]} 51. Re8+ {[%emt 0:01:39]} Kf7 {[%emt 0:00:08]} 52. Rd8 {[%emt 0:00:16]} Rc4+ {[%emt 0:00:37]} 53. Kg3 {[%emt 0:00:28]} Ke6 {[%emt 0:00:46]} 54. Re8+ {[%emt 0:00:35]} Kd7 {[%emt 0:00:06]} 55. Rf8 {[%emt 0:00:14]} Ke7 {[%emt 0:00:03]} 56. Rb8 {[%emt 0:01:18]} Rxa4 {[%emt 0:00:10]} 57. Rb5 {[%emt 0:00:30]} Kd6 {[%emt 0:00:27]} 58. Rb6+ {[%emt 0:00:19]} Ke5 {[%emt 0:00:04]} 59. Rb8 {[%emt 0:00:43]} Rc4 {[%emt 0:00:42]} 60. Re8+ {[%emt 0:00:23]} Kd6 {[%emt 0:00:28]} 61. Ra8 {[%emt 0:00:12]} a4 {[%emt 0:00:50]} 62. Kf2 {[%emt 0:00:12]} Ke5 {[%emt 0:00:24]} 63. Kg3 {[%emt 0:00:58]} Kf5 {[%emt 0:01:25]} 64. Ra5 {[%emt 0:00:12]} Ke5 {[%emt 0:00:21]} 65. Ra8 {[%emt 0:00:14]} Rxc3 {[%emt 0:00:49]} 66. Rxa4 {[%emt 0:00:04]} Rc4 {[%emt 0:00:03]} 67. Ra8 {[%emt 0:00:08]} Kd4 {[%emt 0:01:11]} 68. f4 {[%emt 0:01:09]} Ke3 {[%emt 0:00:50]} 69. Ra3+ {[%emt 0:00:23]} Ke4 {[%emt 0:00:04]} 70. fxg5 {[%emt 0:00:13]} fxg5 {[%emt 0:00:07]} 71. Ra8 {[%emt 0:00:07]} Kd3 {[%emt 0:00:36]} 72. Rg8 {[%emt 0:00:56]} g4 {[%emt 0:00:25]} 73. Rg5 {[%emt 0:00:21]} Rd4 {[%emt 0:00:41]} 74. Rf5 {[%emt 0:02:59]} Kc4 {[%emt 0:00:27]} 75. Rf8 {[%emt 0:00:21]} Re4 {[%emt 0:00:09]} 76. Rc8+ {[%emt 0:00:42]} Kd3 {[%emt 0:00:11]} 77. Ra8 {[%emt 0:00:15]} d4 {[%emt 0:00:20]} 78. Ra3+ {[%emt 0:00:08]} Ke2 {[%emt 0:00:08]} 79. Ra4 {[%emt 0:00:51]} Ke3 {[%emt 0:00:41]} 0-1

[Event "WJCC U20 Girls 2019"]
[Site "New Delhi"]
[Date "2019.10.23"]
[Round "9.38"]
[White "Dahampriya, H K T Dewnethmie"]
[Black "Noshin, Anjum"]
[Result "1-0"]
[ECO "C78"]
[WhiteElo "1629"]
[BlackElo "1793"]
[Annotator "NA"]
[PlyCount "123"]
[EventDate "2019.10.15"]
[EventType "swiss"]
[EventCountry "IND"]
[SourceTitle "playchess.com"]
[Source "ChessBase"]
[SourceQuality "1"]
[TimeControl "40/5400+30:1800+30"]

1. e4 {[%emt 0:00:00]} e5 {[%emt 0:00:00]} 2. Nf3 {[%emt 0:00:00]} Nc6 {[%emt 0:00:00]} 3. Bb5 {[%emt 0:00:00]} a6 {[%emt 0:00:00]} 4. Ba4 {[%emt 0:00:00]} Nf6 {[%emt 0:00:04]} 5. O-O {[%emt 0:00:00]} b5 {[%emt 0:00:12]} 6. Bb3 {[%emt 0:00:04]} Bc5 {[%emt 0:00:06]} 7. c3 {[%emt 0:00:13]} d6 {[%emt 0:00:19]} 8. d4 {[%emt 0:00:57]} Bb6 {[%emt 0:00:30]} 9. h3 {[%emt 0:00:06]} O-O {[%emt 0:00:19]} 10. Bc2 {[%emt 0:00:34]} h6 {[%emt 0:02:50]} 11. Be3 {[%emt 0:09:17]} exd4 {[%emt 0:07:56]} 12. cxd4 {[%emt 0:01:52]} Nb4 {[%emt 0:03:28]} 13. Bb3 {[%emt 0:00:29]} d5 {[%emt 0:03:30]} 14. e5 {[%emt 0:00:55]} Ne4 {[%emt 0:02:49]} 15. a3 {[%emt 0:00:39]} Nc6 {[%emt 0:00:24]} 16. Nc3 {[%emt 0:01:00]} Ne7 {[%emt 0:15:31]} 17. Nd2 {[%emt 0:02:23]} Nxc3 {[%emt 0:06:17]} 18. bxc3 {[%emt 0:00:09]} f5 {[%emt 0:13:04]} 19. f4 {[%emt 0:01:04]} Be6 {[%emt 0:01:03]} 20. Qf3 {[%emt 0:11:55]} Qe8 {[%emt 0:02:08]} 21. Kh2 {[%emt 0:00:36]} Qg6 {[%emt 0:07:53]} 22. Rg1 {[%emt 0:00:47]} h5 {[%emt 0:07:28]} 23. Bd1 {[%emt 0:00:53]} Bf7 {[%emt 0:03:04]} 24. Qf2 {[%emt 0:11:27]} Rae8 {[%emt 0:12:49]} 25. Nf3 {[%emt 0:01:13]} Qh6 {[%emt 0:06:01]} 26. Rh1 {[%emt 0:02:29]} Nc6 {[%emt 0:03:53]} 27. Ng5 {[%emt 0:03:19]} Rd8 {[%emt 0:00:28]} 28. g4 {[%emt 0:04:43]} hxg4 {[%emt 0:00:50]} 29. Kg1 {[%emt 0:00:36]} g3 {[%emt 0:00:31]} 30. Qxg3 {[%emt 0:00:16]} Rfe8 {[%emt 0:00:56]} 31. Kf2 {[%emt 0:06:13]} Kf8 {[%emt 0:00:33]} 32. Bc2 {[%emt 0:02:26]} Ne7 {[%emt 0:00:31]} 33. Rag1 {[%emt 0:01:02]} Bg8 {[%emt 0:00:21]} 34. h4 {[%emt 0:06:04]} Rd7 {[%emt 0:00:27]} 35. h5 {[%emt 0:03:08]} Rc8 {[%emt 0:00:12]} 36. Qh3 {[%emt 0:00:52]} Bh7 {[%emt 0:00:53]} 37. Nxh7+ {[%emt 0:03:40]} Qxh7 {[%emt 0:00:06]} 38. h6 {[%emt 0:00:11]} g6 {[%emt 0:00:40]} 39. Qh4 {[%emt 0:00:54]} Ng8 {[%emt 0:00:19]} 40. Qg5 {[%emt 0:00:56]} Kf7 {[%emt 0:00:21]} 41. Bxf5 {[%emt 0:44:02]} gxf5 {[%emt 0:01:27]} 42. Qg7+ {[%emt 0:00:00]} Qxg7 {[%emt 0:01:54]} 43. Rxg7+ {[%emt 0:00:00]} Ke6 {[%emt 0:00:20]} 44. h7 Rxg7 45. h8=Q Rg6 46. Rg1 Rxg1 47. Kxg1 Ne7 48. Qf6+ Kd7 49. Bf2 Rg8+ 50. Kh2 Rg6 51. Qf7 Rh6+ 52. Kg2 Ba5 53. Be1 Rg6+ 54. Kh3 Rh6+ 55. Bh4 Rxh4+ 56. Kxh4 Bxc3 57. Qf6 a5 58. Qa6 c6 59. Qa7+ Ke6 60. Qc5 Bd2 61. Qd6+ Kf7 62. Kg5 1-0

[Event "WJCC U20 Girls 2019"]
[Site "New Delhi"]
[Date "2019.10.23"]
[Round "9.39"]
[White "Rathi Dhanashree"]
[Black "Salimova, Nurgyul"]
[Result "0-1"]
[ECO "D05"]
[WhiteElo "1692"]
[BlackElo "2415"]
[Annotator "ChessBase"]
[PlyCount "94"]
[EventDate "2019.10.15"]
[EventType "swiss"]
[EventCountry "IND"]
[SourceTitle "playchess.com"]
[Source "ChessBase"]
[SourceQuality "1"]
[TimeControl "40/5400+30:1800+30"]

1. d4 {[%emt 0:00:00]} Nf6 {[%emt 0:00:00]} 2. Nf3 {[%emt 0:00:10]} d5 {[%emt 0:00:03]} 3. e3 {[%emt 0:00:27]} e6 {[%emt 0:00:44]} 4. Bd3 {[%emt 0:00:17]} c5 {[%emt 0:00:42]} 5. b3 {[%emt 0:00:23]} Nc6 {[%emt 0:00:12]} 6. O-O {[%emt 0:02:42]} Qc7 {[%emt 0:04:31]} 7. Bb2 {[%emt 0:03:48]} b6 {[%emt 0:01:00]} 8. Nbd2 {[%emt 0:01:50]} Bb7 {[%emt 0:01:47]} 9. Ne5 {[%emt 0:10:35]} Nxe5 {[%emt 0:05:15]} 10. dxe5 {[%emt 0:00:26]} Nd7 {[%emt 0:00:04]} 11. f4 {[%emt 0:00:54]} g6 {[%emt 0:01:27]} 12. Qe2 {[%emt 0:01:12]} Bg7 {[%emt 0:00:36]} 13. e4 {[%emt 0:05:31]} O-O {[%emt 0:08:55]} 14. Rae1 {[%emt 0:07:58]} a5 {[%emt 0:10:41]} 15. a4 {[%emt 0:11:53]} Rac8 {[%emt 0:08:53]} 16. Qg4 {[%emt 0:09:33]} c4 {[%emt 0:07:19]} 17. bxc4 {[%emt 0:03:10]} dxe4 {[%emt 0:00:28]} 18. Nxe4 {[%emt 0:10:54]} Bxe4 {[%emt 0:01:26]} 19. Rxe4 {[%emt 0:07:37]} Nc5 {[%emt 0:00:04]} 20. Ree1 {[%emt 0:02:04]} Rfd8 {[%emt 0:02:03]} 21. Qe2 {[%emt 0:10:40]} Qd7 {[%emt 0:03:08]} 22. Ra1 {[%emt 0:06:46]} Bh6 {[%emt 0:03:15]} 23. Rfd1 {[%emt 0:01:57]} Qc6 {[%emt 0:01:15]} 24. Ba3 {[%emt 0:00:37]} Nxa4 {[%emt 0:08:02]} 25. Qe3 {[%emt 0:00:18]} Bf8 {[%emt 0:06:41]} 26. Bxf8 {[%emt 0:00:30]} Kxf8 {[%emt 0:00:38]} 27. Be2 {[%emt 0:00:38]} Nc5 {[%emt 0:07:14]} 28. Rxd8+ {[%emt 0:00:10]} Rxd8 {[%emt 0:00:01]} 29. Bd3 {[%emt 0:00:56]} a4 {[%emt 0:01:41]} 30. Ra3 {[%emt 0:00:17]} Qa8 {[%emt 0:01:45]} 31. Kf2 {[%emt 0:00:13]} Qa5 {[%emt 0:00:28]} 32. Qe1 {[%emt 0:00:08]} Qa7 {[%emt 0:00:33]} 33. Qb4 {[%emt 0:00:32]} Kg8 {[%emt 0:02:18]} 34. Ke3 {[%emt 0:00:18]} b5 {[%emt 0:02:29]} 35. Ke2 {[%emt 0:00:39]} Nxd3 {[%emt 0:04:47]} 36. cxd3 {[%emt 0:00:42]} bxc4 {[%emt 0:00:23]} 37. Qxc4 {[%emt 0:01:00]} Qb7 {[%emt 0:00:45]} 38. Rxa4 {[%emt 0:00:30]} Qxg2+ {[%emt 0:00:06]} 39. Kd1 {[%emt 0:00:11]} Qg1+ {[%emt 0:00:37]} 40. Kc2 {[%emt 0:00:25]} Qxh2+ {[%emt 0:00:08]} 41. Kc3 {[%emt 0:30:12]} Qg1 42. Qe4 Qc1+ 43. Kb3 Rb8+ 44. Rb4 Qb1+ 45. Kc3 Qxb4+ 46. Qxb4 Rxb4 47. Kxb4 h5 0-1

[Event "WJCC U20 Girls 2019"]
[Site "New Delhi"]
[Date "2019.10.23"]
[Round "9.40"]
[White "Jayaweera, Sayuni Gihansa"]
[Black "Arushi Kotwal"]
[Result "0-1"]
[ECO "D96"]
[WhiteElo "1788"]
[BlackElo "1657"]
[Annotator "NA"]
[PlyCount "87"]
[EventDate "2019.10.15"]
[EventType "swiss"]
[EventCountry "IND"]
[SourceTitle "playchess.com"]
[Source "ChessBase"]
[SourceQuality "1"]
[TimeControl "40/5400+30:1800+30"]

1. d4 {[%emt 0:00:00]} Nf6 {[%emt 0:00:00]} 2. c4 {[%emt 0:00:00]} g6 {[%emt 0:00:00]} 3. Nc3 {[%emt 0:00:00]} d5 {[%emt 0:00:00]} 4. Nf3 {[%emt 0:00:16]} Bg7 {[%emt 0:00:00]} 5. Qb3 {[%emt 0:00:13]} c6 {[%emt 0:04:27]} 6. cxd5 {[%emt 0:00:34]} cxd5 {[%emt 0:01:43]} 7. Bg5 {[%emt 0:00:48]} e6 {[%emt 0:01:13]} 8. h3 {[%emt 0:03:01]} Nc6 {[%emt 0:05:44]} 9. e3 {[%emt 0:00:50]} a6 {[%emt 0:01:43]} 10. Be2 {[%emt 0:03:49]} Na5 {[%emt 0:02:26]} 11. Qb4 {[%emt 0:09:30]} Nc6 {[%emt 0:02:37]} 12. Qb3 {[%emt 0:06:09]} Na5 {[%emt 0:00:40]} 13. Qa3 {[%emt 0:04:11]} b5 {[%emt 0:13:20]} 14. Nxb5 {[%emt 0:25:07]} axb5 {[%emt 0:00:40]} 15. Bxb5+ {[%emt 0:00:02]} Bd7 {[%emt 0:00:47]} 16. Bxd7+ {[%emt 0:00:08]} Kxd7 {[%emt 0:02:17]} 17. Ne5+ {[%emt 0:00:19]} Ke8 {[%emt 0:00:44]} 18. O-O {[%emt 0:08:46]} h6 {[%emt 0:04:35]} 19. Bh4 {[%emt 0:02:07]} g5 {[%emt 0:02:32]} 20. Bg3 {[%emt 0:00:05]} Nc4 {[%emt 0:03:17]} 21. Qb4 {[%emt 0:02:22]} Qb6 {[%emt 0:02:14]} 22. Qxb6 {[%emt 0:01:22]} Nxb6 {[%emt 0:00:06]} 23. Rfc1 {[%emt 0:00:10]} Ne4 {[%emt 0:05:09]} 24. Bh2 {[%emt 0:00:35]} Bf8 {[%emt 0:18:46]} 25. Rc6 {[%emt 0:01:57]} Nd7 {[%emt 0:03:11]} 26. f3 {[%emt 0:02:19]} Nd6 {[%emt 0:03:51]} 27. Rac1 {[%emt 0:04:58]} Rh7 {[%emt 0:10:58]} 28. a3 {[%emt 0:03:19]} Nxe5 {[%emt 0:01:06]} 29. Bxe5 {[%emt 0:00:23]} Nc4 {[%emt 0:00:11]} 30. b3 {[%emt 0:02:19]} Bxa3 {[%emt 0:04:31]} 31. Ra1 {[%emt 0:02:27]} Nxe5 {[%emt 0:00:05]} 32. dxe5 {[%emt 0:00:01]} Ra5 {[%emt 0:00:19]} 33. Kf2 {[%emt 0:00:37]} Kd7 {[%emt 0:01:35]} 34. Rc2 {[%emt 0:01:17]} Rh8 {[%emt 0:00:35]} 35. Ke2 {[%emt 0:00:37]} Rb8 {[%emt 0:00:44]} 36. Rc3 {[%emt 0:00:15]} Bb2 {[%emt 0:01:50]} 37. Rxa5 {[%emt 0:00:11]} Bxc3 {[%emt 0:00:04]} 38. Ra7+ {[%emt 0:00:06]} Ke8 {[%emt 0:00:04]} 39. Kd3 {[%emt 0:00:05]} Bxe5 {[%emt 0:00:20]} 40. Kc2 {[%emt 0:00:18]} Rc8+ {[%emt 0:00:24]} 41. Kd2 {[%emt 0:30:02]} Rc7 {[%emt 0:30:55]} 42. Rxc7 {[%emt 0:00:17]} Bxc7 {[%emt 0:00:04]} 43. Kc3 {[%emt 0:00:05]} Kd7 {[%emt 0:00:05]} 44. Kd4 0-1

[Event "WJCC U20 Girls 2019"]
[Site "New Delhi"]
[Date "2019.10.23"]
[Round "9.41"]
[White "Shivika Rohilla"]
[Black "Abdala Cancino, Patricia Anastas"]
[Result "1-0"]
[ECO "C70"]
[WhiteElo "1721"]
[BlackElo "1608"]
[Annotator "NA"]
[PlyCount "125"]
[EventDate "2019.10.15"]
[EventType "swiss"]
[EventCountry "IND"]
[SourceTitle "playchess.com"]
[Source "ChessBase"]
[SourceQuality "1"]
[TimeControl "40/5400+30:1800+30"]

1. e4 {[%emt 0:04:20]} e5 {[%emt 0:01:12]} 2. Nf3 {[%emt 0:00:14]} Nc6 {[%emt 0:00:17]} 3. Bb5 {[%emt 0:00:01]} a6 {[%emt 0:00:19]} 4. Ba4 {[%emt 0:00:01]} b5 {[%emt 0:00:25]} 5. Bb3 {[%emt 0:00:02]} Nf6 {[%emt 0:00:41]} 6. d3 {[%emt 0:00:59]} Bc5 {[%emt 0:00:12]} 7. O-O {[%emt 0:00:41]} d6 {[%emt 0:00:41]} 8. c3 {[%emt 0:00:04]} Ba7 {[%emt 0:00:27]} 9. Be3 {[%emt 0:04:15]} Na5 {[%emt 0:05:49]} 10. Bc2 {[%emt 0:00:14]} c5 {[%emt 0:00:17]} 11. Nbd2 {[%emt 0:05:37]} Qe7 {[%emt 0:01:13]} 12. a4 {[%emt 0:04:02]} Nc6 {[%emt 0:02:03]} 13. axb5 {[%emt 0:01:03]} axb5 {[%emt 0:00:10]} 14. d4 {[%emt 0:07:38]} O-O {[%emt 0:01:29]} 15. d5 {[%emt 0:00:31]} Nb8 {[%emt 0:00:32]} 16. Qe2 {[%emt 0:01:22]} Qb7 {[%emt 0:00:52]} 17. Ra5 {[%emt 0:02:39]} Qc7 {[%emt 0:04:26]} 18. Rfa1 {[%emt 0:01:25]} Ba6 {[%emt 0:00:43]} 19. Rxa6 {[%emt 0:01:03]} Nxa6 {[%emt 0:00:02]} 20. Rxa6 {[%emt 0:00:02]} c4 {[%emt 0:00:12]} 21. Bxa7 {[%emt 0:09:52]} Rxa7 {[%emt 0:01:06]} 22. Rxa7 {[%emt 0:00:04]} Qxa7 {[%emt 0:00:08]} 23. Qe1 {[%emt 0:01:19]} Qa2 {[%emt 0:00:18]} 24. Qb1 {[%emt 0:00:14]} Ra8 {[%emt 0:00:19]} 25. Kf1 {[%emt 0:03:03]} Nd7 {[%emt 0:05:29]} 26. Ke2 {[%emt 0:13:08]} Nc5 {[%emt 0:00:18]} 27. Kd1 {[%emt 0:06:15]} Qa5 {[%emt 0:17:54]} 28. Nh4 {[%emt 0:02:12]} g6 {[%emt 0:08:34]} 29. g3 {[%emt 0:00:15]} Qc7 {[%emt 0:04:39]} 30. Ng2 {[%emt 0:01:46]} Qc8 {[%emt 0:00:28]} 31. Ne3 {[%emt 0:00:38]} Qh3 {[%emt 0:00:28]} 32. Nf3 {[%emt 0:02:44]} h6 {[%emt 0:02:09]} 33. Ke2 {[%emt 0:02:34]} Qd7 {[%emt 0:01:14]} 34. h4 {[%emt 0:01:04]} Ra6 {[%emt 0:00:31]} 35. Qc1 {[%emt 0:03:08]} Qa7 {[%emt 0:04:54]} 36. Ng4 {[%emt 0:04:17]} h5 {[%emt 0:00:12]} 37. Nf6+ {[%emt 0:01:06]} Kg7 {[%emt 0:00:20]} 38. Qg5 {[%emt 0:00:32]} Kf8 {[%emt 0:01:36]} 39. Qh6+ {[%emt 0:00:36]} Ke7 {[%emt 0:00:06]} 40. Ng8+ {[%emt 0:00:28]} Kd8 {[%emt 0:00:55]} 41. Qf8+ {[%emt 0:30:24]} Kc7 {[%emt 0:30:08]} 42. Qxf7+ {[%emt 0:00:44]} Kb6 {[%emt 0:00:33]} 43. Ne7 {[%emt 0:01:22]} Qc7 {[%emt 0:00:15]} 44. Ng5 {[%emt 0:06:00]} Ra7 {[%emt 0:02:42]} 45. Nxg6 {[%emt 0:07:19]} Qxf7 {[%emt 0:00:15]} 46. Nxf7 {[%emt 0:00:05]} Rxf7 {[%emt 0:00:09]} 47. f4 {[%emt 0:00:18]} exf4 {[%emt 0:00:43]} 48. gxf4 {[%emt 0:00:08]} Na4 {[%emt 0:00:59]} 49. e5 {[%emt 0:02:24]} Kc5 {[%emt 0:00:48]} 50. e6 {[%emt 0:00:51]} Ra7 {[%emt 0:00:05]} 51. e7 {[%emt 0:02:32]} Ra8 {[%emt 0:00:04]} 52. Bf5 {[%emt 0:00:50]} Nb6 {[%emt 0:00:30]} 53. Be6 {[%emt 0:00:40]} Nxd5 {[%emt 0:00:26]} 54. Bf7 {[%emt 0:00:55]} Nf6 {[%emt 0:00:14]} 55. f5 {[%emt 0:00:00]} d5 {[%emt 0:00:00]} 56. Nf4 {[%emt 0:00:00]} Kd6 {[%emt 0:00:00]} 57. Nxd5 {[%emt 0:00:00]} Ne8 {[%emt 0:00:00]} 58. f6 {[%emt 0:00:00]} Rb8 {[%emt 0:00:00]} 59. Bxe8 {[%emt 0:00:00]} Rxe8 {[%emt 0:00:00]} 60. f7 {[%emt 0:00:00]} Rxe7+ {[%emt 0:00:00]} 61. Nxe7 {[%emt 0:00:00]} Kxe7 {[%emt 0:00:00]} 62. Ke3 {[%emt 0:00:00]} Kxf7 {[%emt 0:00:00]} 63. Kd4 {[%emt 0:00:00]} 1-0

[Event "WJCC U20 Girls 2019"]
[Site "New Delhi"]
[Date "2019.10.23"]
[Round "9.42"]
[White "Levitan, Ronit"]
[Black "Yaakub, Nov Genevia Pslam"]
[Result "1-0"]
[ECO "C54"]
[WhiteElo "1893"]
[BlackElo "1316"]
[Annotator "NA"]
[PlyCount "47"]
[EventDate "2019.10.15"]
[EventType "swiss"]
[EventCountry "IND"]
[SourceTitle "playchess.com"]
[Source "ChessBase"]
[SourceQuality "1"]
[TimeControl "40/5400+30:1800+30"]

1. e4 {[%emt 0:00:10]} e5 {[%emt 0:00:00]} 2. Nf3 {[%emt 0:00:06]} Nc6 {[%emt 0:00:05]} 3. Bc4 {[%emt 0:00:14]} Bc5 {[%emt 0:00:36]} 4. c3 {[%emt 0:00:08]} Nf6 {[%emt 0:00:47]} 5. d3 {[%emt 0:00:18]} h6 {[%emt 0:00:43]} 6. Nbd2 {[%emt 0:00:54]} d6 {[%emt 0:01:36]} 7. Bb3 {[%emt 0:00:55]} O-O {[%emt 0:02:18]} 8. h3 {[%emt 0:01:07]} Re8 {[%emt 0:02:55]} 9. Nf1 {[%emt 0:02:11]} d5 {[%emt 0:05:47]} 10. Qe2 {[%emt 0:05:46]} dxe4 {[%emt 0:08:30]} 11. dxe4 {[%emt 0:01:32]} b6 {[%emt 0:04:28]} 12. Ng3 {[%emt 0:10:14]} Bb7 {[%emt 0:05:24]} 13. O-O {[%emt 0:08:37]} Bd6 {[%emt 0:08:48]} 14. Rd1 {[%emt 0:05:11]} Qc8 {[%emt 0:21:36]} 15. Nh4 {[%emt 0:10:25]} Ne7 $18 {[%emt 0:06:00]} (15... Na5 $16) 16. Qf3 {[%emt 0:09:22]} Rd8 {[%emt 0:08:40]} 17. Bxh6 {[%emt 0:03:28]} a5 {[%emt 0:16:31]} 18. Bg5 {[%emt 0:22:14]} a4 {[%emt 0:02:01]} 19. Bc4 {[%emt 0:01:33]} Ba6 {[%emt 0:01:26]} 20. Bxa6 {[%emt 0:00:53]} Rxa6 {[%emt 0:00:35]} 21. Bxf6 {[%emt 0:00:33]} gxf6 {[%emt 0:00:12]} 22. Nh5 {[%emt 0:01:07]} Qe6 {[%emt 0:01:23]} 23. Qg3+ {[%emt 0:00:36]} Kf8 {[%emt 0:00:36]} 24. Qg7+ {[%emt 0:00:13]} 1-0

[Event "WJCC U20 Girls 2019"]
[Site "New Delhi"]
[Date "2019.10.23"]
[Round "9.43"]
[White "Rousseau, Christilla"]
[Black "Lohani, Sujana"]
[Result "1-0"]
[ECO "A45"]
[WhiteElo "1648"]
[BlackElo "1671"]
[Annotator "NA"]
[PlyCount "79"]
[EventDate "2019.10.15"]
[EventType "swiss"]
[EventCountry "IND"]
[SourceTitle "playchess.com"]
[Source "ChessBase"]
[SourceQuality "1"]
[TimeControl "40/5400+30:1800+30"]

1. d4 {[%emt 0:00:00]} Nf6 {[%emt 0:00:00]} 2. Bf4 {[%emt 0:00:00]} d6 {[%emt 0:00:32]} 3. e3 {[%emt 0:00:00]} g6 {[%emt 0:00:34]} 4. h3 {[%emt 0:00:50]} Bg7 {[%emt 0:00:22]} 5. Nf3 {[%emt 0:00:09]} O-O {[%emt 0:00:38]} 6. Be2 {[%emt 0:00:13]} c5 {[%emt 0:03:45]} 7. c3 {[%emt 0:00:21]} Nc6 {[%emt 0:00:45]} 8. O-O {[%emt 0:05:55]} a6 {[%emt 0:02:44]} 9. Bh2 {[%emt 0:05:56]} b5 {[%emt 0:03:00]} 10. Nbd2 {[%emt 0:05:37]} Bb7 {[%emt 0:07:33]} 11. a4 {[%emt 0:17:14]} b4 {[%emt 0:08:44]} 12. Nb3 {[%emt 0:10:18]} cxd4 {[%emt 0:11:35]} 13. cxd4 {[%emt 0:02:31]} Na5 {[%emt 0:04:18]} 14. Rc1 {[%emt 0:12:26]} Nxb3 {[%emt 0:02:03]} 15. Qxb3 a5 {[%emt 0:02:05]} 16. Rc2 {[%emt 0:07:52]} Rc8 {[%emt 0:07:34]} 17. Rfc1 {[%emt 0:02:30]} Qb6 {[%emt 0:04:50]} 18. Rxc8 {[%emt 0:08:12]} Rxc8 {[%emt 0:00:07]} 19. Rxc8+ {[%emt 0:00:06]} Bxc8 {[%emt 0:00:22]} 20. Bc4 {[%emt 0:00:22]} e6 {[%emt 0:02:37]} 21. Bb5 {[%emt 0:01:35]} Ne4 {[%emt 0:07:24]} 22. Qc2 {[%emt 0:05:04]} Bb7 {[%emt 0:00:19]} 23. Bd3 {[%emt 0:01:38]} Nf6 {[%emt 0:08:17]} 24. Nd2 {[%emt 0:01:35]} Bf8 {[%emt 0:07:54]} 25. Qc4 {[%emt 0:06:38]} Bc6 {[%emt 0:08:26]} 26. b3 {[%emt 0:00:07]} Nd5 {[%emt 0:00:47]} 27. Ne4 {[%emt 0:02:16]} Qc7 {[%emt 0:00:48]} 28. Qa6 {[%emt 0:02:50]} f5 {[%emt 0:02:29]} 29. Nd2 {[%emt 0:01:22]} Bb7 {[%emt 0:00:50]} 30. Qc4 {[%emt 0:00:22]} Qd8 {[%emt 0:01:08]} 31. e4 {[%emt 0:00:36]} fxe4 {[%emt 0:00:59]} 32. Bxe4 {[%emt 0:00:06]} Kg7 {[%emt 0:01:10]} 33. Qc2 {[%emt 0:00:57]} Qa8 {[%emt 0:01:04]} 34. Nc4 Nc3 35. Bxb7 Qxb7 36. Bxd6 Bxd6 37. Nxd6 Qd5 38. Nc4 Qxd4 39. Nxa5 Qh4 40. Nc6 1-0

[Event "WJCC U20 Girls 2019"]
[Site "New Delhi"]
[Date "2019.10.23"]
[Round "9.44"]
[White "Du Plessis, Anika"]
[Black "Reid, Caitlin"]
[Result "1-0"]
[ECO "B73"]
[WhiteElo "1594"]
[BlackElo "1489"]
[Annotator "NA RC"]
[PlyCount "46"]
[EventDate "2019.10.15"]
[EventType "swiss"]
[EventCountry "IND"]
[SourceTitle "playchess.com"]
[Source "ChessBase"]
[SourceQuality "1"]
[TimeControl "40/5400+30:1800+30"]

1. e4 {[%emt 0:00:00]} c5 {[%emt 0:00:00]} 2. Nf3 {[%emt 0:00:00]} d6 {[%emt 0:00:00]} 3. d4 {[%emt 0:00:00]} cxd4 {[%emt 0:00:13]} 4. Nxd4 {[%emt 0:00:00]} Nf6 {[%emt 0:00:12]} 5. Nc3 {[%emt 0:00:37]} g6 {[%emt 0:00:14]} 6. Be2 {[%emt 0:03:16]} Bg7 {[%emt 0:00:06]} 7. O-O {[%emt 0:01:08]} Nc6 {[%emt 0:00:22]} 8. Be3 {[%emt 0:02:28]} O-O {[%emt 0:00:15]} 9. f4 {[%emt 0:08:25]} e6 {[%emt 0:00:23]} 10. Ndb5 {[%emt 0:04:56]} Ne8 {[%emt 0:00:52]} 11. Qd2 {[%emt 0:02:30]} a6 {[%emt 0:00:27]} 12. Nd4 {[%emt 0:01:11]} Nc7 {[%emt 0:01:20]} 13. Nf3 {[%emt 0:03:19]} Qe7 {[%emt 0:05:53]} 14. Rad1 {[%emt 0:05:11]} Rd8 {[%emt 0:03:03]} 15. Qe1 {[%emt 0:01:26]} b5 {[%emt 0:00:33]} 16. a3 {[%emt 0:05:08]} Bb7 {[%emt 0:00:34]} 17. Qf2 {[%emt 0:02:05]} Na5 {[%emt 0:03:32]} 18. f5 {[%emt 0:04:34]} Nc4 {[%emt 0:01:08]} 19. Bxc4 {[%emt 0:00:47]} bxc4 {[%emt 0:00:23]} 20. fxg6 {[%emt 0:03:47]} fxg6 {[%emt 0:00:30]} 21. Bg5 {[%emt 0:03:14]} Bf6 {[%emt 0:00:39]} 22. Bxf6 {[%emt 0:00:29]} Qxf6 {[%emt 0:00:11]} 23. Qb6 {[%emt 0:00:28]} Rdc8 1-0